Cogmind - Beta 11 @@@ ROGUE MODE // 2022.04.04 @ 17:47:02 Player: DrZettl Result: Destroyed by G-47 Trooper with Particle Gun Performance ------------- Evolutions (2) 1000 Regions Visited (3) 600 Robots Destroyed (99) 495 Value Destroyed (2982) 2982 Prototype IDs (7) 140 Alien Tech Used (0) 0 Bonus (810) 810 TOTAL SCORE: 6027 Bonus ------- High Alert Combat Kills 810 Cogmind --------- Core Integrity 0/550 Matter 182/300 Energy 100/100 System Corruption 0% Temperature Cool (9) Movement Treading (157) Location -8/Materials Parts ------- > --- POWER (1) -------- (None) > --- PROPULSION (3) --- Armored Treads Advanced Treads > --- UTILITY (5) ------ Medium Storage Unit Improved Signal Interpreter Improved Targeting Computer > --- WEAPON (2) ------- High-powered Shotgun > --- INVENTORY (10) --- Light Ion Engine Cooled VTOL Module Cooled VTOL Module Cooled VTOL Module Cooled VTOL Module Hacking Suite Improved Light Cannon Greatsword Peak State ------------ > --- POWER ------------ Heavy Ion Engine > --- PROPULSION ------- Cooled VTOL Module Cooled VTOL Module Cooled VTOL Module > --- UTILITY ---------- Medium Storage Unit Improved Signal Interpreter Improved Targeting Computer Improved Targeting Computer Medium Armor Plating > --- WEAPON ----------- Greatsword > --- INVENTORY -------- Light Ion Engine Armored Wheel Medium Armor Plating Hacking Suite Improved Light Cannon Improved Light Cannon Improved Light Cannon Improved Light Cannon Grenade Launcher Datajack [Rating: 37] Favorites ----------- Power Ion Engine Engine Ion Engine Power Core Light Nuclear Core Propulsion Armored Wheel Treads Light Treads Leg Aluminum Leg Wheel Armored Wheel Flight Unit Cooled VTOL Module Utility Medium Storage Unit Device Structural Scanner Storage Medium Storage Unit Processor Improved Signal Interpreter Protection Heavy Armor Plating Weapon Heavy EM Pulse Gun Energy Gun Heavy EM Pulse Gun Energy Cannon Advanced Beam Cannon Ballistic Gun Assault Rifle Ballistic Cannon Improved Light Cannon Launcher Grenade Launcher Slashing Weapon Greatsword Special Melee Weapon Datajack Build | -11 -10 -9 -8 ------- Run | Scr Mat Mat Mat Slots Evolved 4 | . . 2 2 Power . | . . . . Propulsion 1 | . . . 1 Utility 3 | . . 2 1 Weapon . | . . . . Parts Attached 85 | 7 8 35 35 Power 7 | 1 1 4 1 Engine 6 | 1 1 4 . Core 1 | . . . 1 Reactor . | . . . . Propulsion 27 | 2 2 6 17 Treads 8 | . . 1 7 Leg 3 | . . . 3 Wheel 13 | 2 2 5 4 Hover . | . . . . Flight 3 | . . . 3 Utility 24 | 2 3 14 5 Device 2 | 1 1 . . Storage 4 | 1 1 2 . Processor 7 | . 1 5 1 Hackware . | . . . . Protection 11 | . . 7 4 Artifact . | . . . . Weapon 27 | 2 2 11 12 Energy Gun 11 | 1 2 7 1 Energy Cannon 2 | . . 2 . Ballistic Gun 2 | 1 . . 1 Ballistic Cannon 5 | . . . 5 Launcher 5 | . . 2 3 Special Weapon . | . . . . Impact Weapon . | . . . . Slashing Weapon 1 | . . . 1 Piercing Weapon . | . . . . Special Melee Weapon 1 | . . . 1 Unidentified Prototypes 3 | . . 2 1 Parts Lost 28 | . 2 9 17 Power 3 | . 1 . 2 Propulsion 5 | . . 1 4 Utility 7 | . . 3 4 Weapon 13 | . 1 5 7 Highest Loss Streak 5 | . 1 3 5 To Critical Strikes . | . . . . Average Slot Usage (%) 89 | . 94 90 85 Engine 8 | . 8 10 2 Treads 3 | . . 2 12 Wheel 18 | . 28 19 8 Storage 10 | . 14 11 9 Processor 14 | . 7 13 19 Protection 9 | . . 10 12 Energy Gun 15 | . 22 18 . Energy Cannon 1 | . . 2 1 Ballistic Cannon 2 | . . . 13 Naked Turns . | . . . . Heaviest Build 40 | 15 20 40 35 Greatest Support 42 | 20 20 26 42 Greatest Overweight (x) 7 | . . 2 7 Average Overweight (x) 1 | . . 1 1 Largest Inventory Capacity 10 | 8 10 10 10 Average Capacity 9 | 7 8 9 10 Most Carried 10 | 5 8 10 10 Average Carried 8 | 3 7 9 9 Final Capacity 10 | 8 10 10 10 Final Carried 10 | 5 8 10 9 Class Distribution -------------------- 100% | Mutant Dominant Class ---------------- Mutant | -10/Materials Mutant | -9/Materials Mutant | -8/Materials Resources | -11 -10 -9 -8 ----------- Run | Scr Mat Mat Mat Matter Collected 1682 | 231 175 543 733 Remotely . | . . . . Salvage Created 3418 | 123 306 1955 1034 Parts 202 | 8 26 113 55 Haulers Intercepted 8 | . 1 6 1 Recyclers Shooed 1 | . . 1 . Parts Field Recycled . | . . . . Retrieved Matter . | . . . . Parts Self-Destructed . | . . . . Prevented . | . . . . Kills | -11 -10 -9 -8 ------- Run | Scr Mat Mat Mat Combat Hostiles Destroyed 76 | . 10 33 33 Melee 2 | . . . 2 Guns 33 | . 8 21 4 Cannons 17 | . . 2 15 AOE 21 | . 2 7 12 Classes Destroyed 12 | 2 3 5 2 Worker 1 | . . . 1 Tunneler 3 | 2 . 1 . Hauler 8 | . 1 6 1 Recycler 3 | 1 . 1 1 Operator 3 | . . 2 1 Watcher 5 | . . 5 . Swarmer 16 | . 6 3 7 Grunt 43 | . 4 19 20 Brawler 1 | . . 1 . Duelist 2 | . . 1 1 Sentry 12 | . . 9 3 Hunter 2 | . . . 2 Best Kill Streak 11 | 3 3 5 11 Combat Bots Only 11 | . 3 4 11 Max Kills in Single Turn 3 | 1 2 1 3 Gunslinging . | . . . . Exploded 3 | . 2 1 3 Melee 1 | . . . 1 Uniques/NPCs Destroyed . | . . . . Combat | -11 -10 -9 -8 -------- Run | Scr Mat Mat Mat Damage Taken 5363 | . 518 1829 3016 Core 848 | . 156 131 561 Absorbed by Shields . | . . . . Core Remaining (%) 68 | 100 37 67 . Volleys Fired 248 | 5 30 129 84 Largest 2 | 2 2 2 2 Hottest 113 | 70 95 113 113 Shots Fired 468 | 10 60 250 148 Gun 318 | 10 60 234 14 Cannon 129 | . . 11 118 Launcher 21 | . . 5 16 Special . | . . . . Kinetic 130 | 5 17 . 108 Thermal 72 | 5 30 22 15 Explosive 21 | . . 5 16 Electromagnetic 245 | . 13 223 9 Robot Hit Streak 13 | 5 3 13 8 Robot Miss Streak 5 | 2 2 5 3 Penetration Max . | . . . . Secondary Targets 3 | . 1 2 . Max Gunslinging Chain 1 | . 1 1 . Shots Hit Robots 273 | 6 29 150 88 Core Hits 158 | 4 18 68 68 Critical Kills . | . . . . Critical Parts Destroyed . | . . . . Critical Strikes 13 | . 2 6 5 Burn 4 | . 2 2 . Blast 5 | . . . 5 Corrupt 4 | . . 4 . Melee Attacks 5 | . . . 5 Impact . | . . . . Slashing 5 | . . . 5 Piercing . | . . . . Sneak Attacks . | . . . . Combat Hostiles . | . . . . Follow-up Attacks . | . . . . Damage Inflicted 6743 | 72 554 3101 3016 Guns 2713 | 72 395 2085 161 Cannons 1656 | . . 140 1516 Explosions 2246 | . 159 850 1237 Melee 96 | . . . 96 Ramming 32 | . . 26 6 Kinetic 1563 | 22 92 . 1449 Thermal 1335 | 50 396 745 144 Explosive 1569 | . . 332 1237 Electromagnetic 2148 | . 66 1998 84 Impact . | . . . . Slashing 96 | . . . 96 Piercing . | . . . . Highest Corruption 1 | . . 1 . Average Corruption 1 | . . 1 . Corruption Purged . | . . . . Corruption Blocked . | . . . . Effects 13 | . . 13 . Message Errors 1 | . . 1 . Matter Fused 5 | . . 5 . Heat Flow Errors 1 | . . 1 . Energy Discharges 2 | . . 2 . Data Loss (minor) 3 | . . 3 . Misfires 1 | . . 1 . Overload Shots . | . . . . Overflow Damage 95 | . 17 9 69 Projectiles 12 | . . . 12 Explosions 83 | . 17 9 57 Melee . | . . . . Knockbacks 19 | . . . 19 Impact . | . . . . Kinetic 18 | . . . 18 Secondary 1 | . . . 1 Self-Inflicted Damage 328 | . 82 103 143 Shots 9 | . 2 1 6 Rammed 6 | . . 4 2 Targets Rammed 6 | . . 4 2 Kicked . | . . . . Crushed . | . . . . Highest Temperature 540 | 36 136 540 327 Average Temperature 107 | 16 48 118 105 Received Heat Transfer 2151 | . 144 657 1350 Effects 15 | . . 13 2 Shutdowns 3 | . . 3 . Energy Bleed 6 | . . 4 2 Interference 1 | . . 1 . Matter Decay 3 | . . 3 . Damage (minor) 1 | . . 1 . Damage (major) 1 | . . 1 . Siege Activations . | . . . . Robots Corrupted 4 | . . 4 . Combat Hostiles 3 | . . 3 . Parts Fried 14 | . . 14 . Impact Corruptions . | . . . . Robots Melted . | . . . . Combat Hostiles . | . . . . Parts Melted 3 | . 3 . . Heat Transferred 2674 | 148 1001 1266 259 Parts Sabotaged . | . . . . Parts Stolen . | . . . . Parts Stripped . | . . . . Power Chain Reactions 10 | . 1 9 . Missiles Intercepted . | . . . . Alert | -11 -10 -9 -8 ------- Run | Scr Mat Mat Mat Peak Influence 1226 | 15 217 969 1226 Initial 408 | . 9 27 408 Average 485 | 3 92 465 856 Maximum Alert Level 4 | . 1 3 4 Low Security (%) 29 | 100 94 21 . Level 1 15 | . 5 24 . Level 2 22 | . . 28 24 Level 3 27 | . . 25 52 Level 4 4 | . . . 22 Level 5 . | . . . . High Security . | . . . . Max Security . | . . . . Squads Dispatched 17 | . 1 8 8 Investigation 7 | . 1 3 3 Extermination . | . . . . Reinforcement 8 | . . 5 3 Assault . | . . . . Garrison 2 | . . . 2 Intercept . | . . . . Searches Triggered . | . . . . Construction Impeded 3 | . . 2 1 Haulers Reinforced . | . . . . Active Scanning Responses . | . . . . Cargo Convoy Interrupts . | . . . . Stealth | -11 -10 -9 -8 --------- Run | Scr Mat Mat Mat Distress Signals 11 | . 2 4 5 Communications Jammed . | . . . . Distress Signals . | . . . . Times Spotted 130 | . 19 54 57 Peak Tracking Total 12 | . 4 6 12 Tactical Retreats 6 | . . 4 2 Traps | -11 -10 -9 -8 ------- Run | Scr Mat Mat Mat Traps Triggered 1 | . . . 1 Indirectly . | . . . . Trap Hack Attempts . | . . . . Triggered . | . . . . Disarmed 4 | . 4 . . Reprogrammed . | . . . . Reused . | . . . . Traps Extracted . | . . . . Installed . | . . . . Triggered . | . . . . Machines | -11 -10 -9 -8 ---------- Run | Scr Mat Mat Mat Machines Disabled 11 | . 2 7 2 Max in Single Turn 2 | . 2 2 1 Garrison Access 1 | . . . 1 Machines Sabotaged . | . . . . Garrisons Compromised . | . . . . Overloaded Fab Kills . | . . . . Hacking | -11 -10 -9 -8 --------- Run | Scr Mat Mat Mat Machines Accessed 20 | . 6 9 5 Terminals 16 | . 6 7 3 Fabricators . | . . . . Repair Stations . | . . . . Recycling Units 3 | . . 2 1 Scanalyzers . | . . . . Garrison Access 1 | . . . 1 Total Hacks 46 | . 15 18 13 Successful 24 | . 7 11 6 Failed 22 | . 8 7 7 Catastrophic 4 | . 2 1 1 Database Lockouts . | . . . . Manual 23 | . 8 6 9 Terminals 38 | . 15 15 8 Fabricators . | . . . . Repair Stations . | . . . . Recycling Units 5 | . . 3 2 Scanalyzers . | . . . . Garrison Access 3 | . . . 3 Terminal Hacks 18 | . 7 8 3 Robot Analysis 1 | . . 1 . Prototype ID Bank 2 | . . 2 . Branch Access Points 1 | . . 1 . Alert Level 2 | . 1 1 . Unreport Threat 5 | . 1 1 3 Locate Traps 1 | . 1 . . Disarm Traps 1 | . 1 . . Patrol Status 1 | . 1 . . Transport Status 1 | . 1 . . Reinforcement Status 1 | . . 1 . Hauler Manifests 2 | . 1 1 . Fabricator Hacks . | . . . . Repair Station Hacks . | . . . . Recycling Unit Hacks 5 | . . 3 2 Report Inventory 3 | . . 2 1 Retrieve Components 2 | . . 1 1 Scanalyzer . | . . . . Garrison Access Hacks . | . . . . Unauthorized Hacks 1 | . . . 1 Terminals . | . . . . Fabricators . | . . . . Repair Stations . | . . . . Recycling Units . | . . . . Scanalyzers . | . . . . Garrison Access 1 | . . . 1 Jam 1 | . . . 1 Data Cores Recovered 1 | . . 1 . Used . | . . . . Hacking Detections 12 | . 5 5 2 Full Trace Events 7 | . 3 3 1 Feedback Events . | . . . . Feedback Blocked . | . . . . Robot Schematics Acquired . | . . . . Robots Built . | . . . . Authchips . | . . . . Time . | . . . . Total Robot Build Rating . | . . . . Part Schematics Acquired . | . . . . Parts Built . | . . . . Authchips . | . . . . Time . | . . . . Total Part Build Rating . | . . . . Parts Repaired . | . . . . Time . | . . . . Parts Recycled . | . . . . Recycled Matter . | . . . . Retrieved Matter . | . . . . Retrieved Components 19 | . . 9 10 Parts Scanalyzed . | . . . . Part Schematics Acquired . | . . . . Parts Damaged . | . . . . Bothacking | -11 -10 -9 -8 ------------ Run | Scr Mat Mat Mat Used RIF Installer . | . . . . Robots Hacked . | . . . . Non-combat . | . . . . Combat . | . . . . Robot Hacks Applied . | . . . . Relay Couplers Released . | . . . . Fabnet Peak Effective % . | . . . . Robots Rewired . | . . . . Allies Hacked . | . . . . Hacks Repelled . | . . . . Allies | -11 -10 -9 -8 -------- Run | Scr Mat Mat Mat Total Allies . | . . . . Largest Group . | . . . . Highest-Rated Group . | . . . . Highest-Rated Ally . | . . . . Total Orders . | . . . . Ally Attacks . | . . . . Total Damage . | . . . . Kills . | . . . . Allies Corrupted . | . . . . Allies Melted . | . . . . Intel | -11 -10 -9 -8 ------- Run | Scr Mat Mat Mat Robot Analysis Total 1 | . . 1 . Derelict Logs Recovered . | . . . . Drone Launches . | . . . . Drone Recoveries . | . . . . Exploration | -11 -10 -9 -8 ------------- Run | Scr Mat Mat Mat Turns Passed 3713 | 79 513 2350 771 Spaces Moved 2457 | 61 471 1583 342 Core 3 | 1 . . 2 Treads 22 | . . 3 19 Legs 7 | . . . 7 Wheels 2419 | 60 471 1580 308 Hover . | . . . . Flight 6 | . . . 6 Fastest Speed 50 | 50 80 80 85 Average Speed 104 | 79 80 107 126 Slowest Speed 400 | 80 80 240 400 Overloaded Moves 2 | . . . 2 Propulsion Burnouts . | . . . . Robots Hopped . | . . . . Cave-ins Triggered . | . . . . Exploration Rate (%) 52 | 4 88 84 34 Regions Visited 3 Branch Regions . Pre-discovered Areas . | . . . . Known Exits Taken 2 | . 1 1 . Unknown Exits Taken 1 | 1 . . . Scrap Searched . | . . . . Spaces Dug . | . . . . Terrain Destroyed 218 | . 26 128 64 Melee . | . . . . Projectile 8 | . . . 8 AOE 210 | . 26 128 56 Terrain Rammed . | . . . . Walls Destroyed . | . . . . Machines Disabled . | . . . . Actions | -11 -10 -9 -8 --------- Run | Scr Mat Mat Mat Total 3135 | 77 550 1987 521 Wait 242 | . 21 195 26 Move 2454 | 60 470 1582 342 Hop . | . . . . Pick Up 42 | 5 11 19 7 Fast Attach 37 | 7 2 10 18 Attach 19 | . 2 8 9 Detach 4 | . . 2 2 Swap 29 | . 4 17 8 Drop 49 | . 10 21 18 Fire 248 | 5 30 129 84 Melee 5 | . . . 5 Ram 6 | . . 4 2 Kick . | . . . . Crush . | . . . . Escape Stasis . | . . . . Rewire . | . . . . Trap . | . . . . Miscellaneous . | . . . . Route ------- -11/Scrapyard -10/Materials (discovered 5 exits: *Mat x3 / [*Min x2]) -9/Materials (discovered 4 exits: *Mat x3 / *Min) -8/Materials History --------- Turn | Location | Event 15 | -11/Scrapyard | Discovered new exit (range 16) 80 | -11/Scrapyard | Entered Materials 252 | -10/Materials | Discovered new exit (range 11) 258 | -10/Materials | Discovered new exit (range 6) 364 | -10/Materials | Build established: Mutant 463 | -10/Materials | Discovered new exit (range 16) 516 | -10/Materials | Core integrity fell below 50% 558 | -10/Materials | Discovered new exit (range 10) 570 | -10/Materials | Discovered new exit (range 14) 582 | -10/Materials | Identified exit to Materials 593 | -10/Materials | Entered another Materials area 593 | -9/Materials | Evolved 2 slots: Utility x2 1088 | -9/Materials | Discovered new exit (range 10) 1101 | -9/Materials | Identified exit to Materials 1126 | -9/Materials | Discovered new exit (range 14) 1260 | -9/Materials | Identified exit to Mines 1748 | -9/Materials | Discovered exit to Materials (range 15) 2317 | -9/Materials | Discovered exit to Materials (range 6) 2464 | -9/Materials | Lost 3 parts (1n2w) 2943 | -9/Materials | Entered another Materials area 2943 | -8/Materials | Evolved 2 slots: Propulsion x1, Utility x1 2987 | -8/Materials | Garrison activated, responded to threat 3061 | -8/Materials | Destroyed 8 combat bots 3062 | -8/Materials | Lost 3 parts (1n2w) 3142 | -8/Materials | Core integrity fell below 50% 3161 | -8/Materials | Lost 5 parts (1p1n2u1w) 3172 | -8/Materials | Destroyed 11 combat bots 3636 | -8/Materials | Core integrity fell below 20% 3714 | -8/Materials | Destroyed by G-47 Trooper with Particle Gun Last Messages --------------- 03675_ Atomic Centrifuge disabled. 03676_ K-01 Serf collects debris. 03680_ Acquired 6 matter. 03682_ Acquired 10 matter. 03683_ Acquired 4 matter. 03683_ K-01 Serf collects debris. 03684_ Arm. Wheel destroyed. 03687_ K-01 Serf collects debris. 03690_ Imp. Light Cannon destroyed. 03690_ K-01 Serf collects debris. 03692_ Acquired Arm. Treads. 03693_ K-01 Serf collects debris. 03693_ Imp. Light Cannon destroyed. 03693_ K-01 Serf collects debris. 03695_ Hrd. Light Armor Plating destroyed. 03697_ K-01 Serf collects debris. 03697_ Critical hit (Burn: +37). 03702_ Acquired Hpw. Shotgun. 03705_ S-10 Pest destroyed. 03710_ K-01 Serf collects debris. Map ----- +----------------------------------------------------+ | ?????????????????????????????????????????????????? | | ?????????????????????????????????????????????????? | | ?????????????????????????????????????????????????? | | ?????????????????????????????????????????????????? | | ?????????????????????????????????????????????????? | | ??????????????????????????####???????????????????? | | ?????????????????????????? ???????????????????? | | ?????????????????????????? ???????????????????? | | ?????????????????????????# ???????????????????? | | ?????????????????????????# #???????????????????? | | ??????????????????????#### # ??????????????????? | | ?????????????????????#"""# # ??????????????????? | | ##????????????????####"T"# +???????????????????? | | # ######??????????# #???????????????????? | | # ! T #??????????# #???????????????????? | | # #??????????# #???????????????????? | | # !! !#??????????# #???????????????????? | | # ! #??????????# "" ! ###?????????????????? | | # ! !#??????????# ^ """ ""#?????????????????? | | # #??????#???# """ T"#?????????????????? | | ###+############### % ""#?????????????????? | | ! %% = ###?????????????????? | | ! [ #???????????????????? | | #####+########?????????????? | | ################### %# g k #?????????????? | | ??????????????????# # @s""" """ #?????????????? | | ??????????????????# s """ """???????????????? | | ??????????????????# k# s""" """ ??????????????? | | ??????????????????#%% # g ??????????????? | | ??????????????????# % #############??????????????? | | ??????????????????# #??????????????????????????? | | ??????????????????# #??????????????????????????? | | ??????????????????# ??????????????????????????? | | ??????????????????# ??????????????????????????? | | ###+####??????????# ??????????????????????????? | | #??????????# #??????????????????????????? | | ??????? #??????????????????????????? | | #????????#+#???????????????????????????? | | #### #??????????????????????????????????????? | | ?????????????????????????????????????????????????? | | ?????????????????????????????????????????????????? | | ?????????????????????????????????????????????????? | | ?????????????????????????????????????????????????? | | ?????????????????????????????????????????????????? | | ?????????????????????????????????????????????????? | | ?????????????????????????????????????????????????? | | ?????????????????????????????????????????????????? | | ?????????????????????????????????????????????????? | | ?????????????????????????????????????????????????? | | #????????????????????????????????????????????????? | +----------------------------------------------------+ Best States ------------- Heat Dissipation 31 Energy Generation 14 Energy Capacity 280 Matter Stores 300 Matter Capacity 300 Sight Range 20 Terrain Scan Range 16 Terrain Scan Density 10 Armor Coverage 600 Evasion (%) 44 Targeting Accuracy 12 Recoil Reduction 2 Item Schematics ----------------- None Robot Schematics ------------------ None Fabricated ------------ Nothing Alien Tech Used ----------------- None Achievements -------------- None Challenges ------------ None Game ------ Seed UltimateResetMachine Manual? 0 Play Time 00:53:31 Cumulative 76.1 hours Start 2022.04.04 @ 12:33:55 End 2022.04.04 @ 17:47:02 Sessions 3 Manual Loads 0 Difficulty Rogue Special Mode None Game No. 82 Rogue 82 Adventurer 0 Explorer 0 Win Type - Total 0 Types 0/0/0/0/0/0/0/0/0 Lore% 33 Gallery% 48 Achievement% 36 Wizard Run 0 Options --------- ASCII 0 Keyboard 0 Movement Numpad Keybinds 0 Fullscreen 2 Font 16/Smallcaps Map View 76x50 Tactical HUD 1 Map Filters NONE Filters NONE Steam 1 RUN: 62d418aa-edc5-41a0-9310-564b0827772e